[Event "Steinthor Baldursson memorial 2018"]
[Site "?"]
[Date "2018.01.07"]
[Round "7"]
[White "Jappinen, Erland"]
[Black "Bannout, Edvin"]
[Result "1-0"]
[ECO "B21"]
[WhiteElo "2026"]
[BlackElo "1869"]
[PlyCount "47"]
[EventDate "2018.??.??"]
[EventType "swiss"]
[EventCountry "ISL"]
[SourceTitle "Kopavogur"]
[TimeControl "5400+30"]
[WhiteClock "0:19:25"]
[BlackClock "0:44:45"]

1. e4 {[%emt 0:00:00]} c5 {[%emt 0:00:00]} 2. d4 {[%emt 0:00:09]} cxd4 {[%emt 0:00:48]} 3. c3 {[%emt 0:00:10]} d5 {[%emt 0:03:35]} 4. exd5 {[%emt 0:00:08]} Qxd5 {[%emt 0:00:12]} 5. cxd4 {[%emt 0:00:07]} Nc6 {[%emt 0:00:22]} 6. Nf3 {[%emt 0:00:11]} Bg4 {[%emt 0:01:30]} 7. Nc3 {[%emt 0:00:57]} Qa5 {[%emt 0:07:36]} 8. d5 {[%emt 0:07:45]} O-O-O {[%emt 0:03:28]} 9. Bd2 {[%emt 0:08:56]} Rxd5 {[%emt 0:14:39]} 10. Nxd5 {[%emt 0:00:33]} Qxd5 {[%emt 0:00:12]} 11. Be2 {[%emt 0:01:05]} Nf6 {[%emt 0:00:20]} 12. Be3 {[%emt 0:01:29]} Qe4 {[%emt 0:08:30]} 13. Rc1 {[%emt 0:04:52]} e5 {[%emt 0:11:34]} 14. O-O {[%emt 0:04:10]} Kb8 {[%emt 0:11:22]} 15. Rc4 {[%emt 0:08:41]} Qf5 {[%emt 0:05:05]} 16. Nxe5 {[%emt 0:06:04]} Bxe2 {[%emt 0:04:53]} 17. Nxc6+ {[%emt 0:00:37]} bxc6 {[%emt 0:00:04]} 18. Qxe2 {[%emt 0:00:11]} Bd6 {[%emt 0:01:51]} 19. Rxc6 {[%emt 0:09:02]} Bxh2+ {[%emt 0:02:52]} 20. Kxh2 {[%emt 0:00:43]} Ng4+ {[%emt 0:00:22]} 21. Kg1 {[%emt 0:00:24]} Qh5 {[%emt 0:00:28]} 22. Bf4+ {[%emt 0:00:08]} Ka8 {[%emt 0:00:50]} 23. Qe4 {[%emt 0:00:43]} Qh2+ {[%emt 0:01:32]} 24. Bxh2 {[%emt 0:00:10]} 1-0

[Event "Steinthor Baldursson memorial 2018"]
[Site "?"]
[Date "2018.01.07"]
[Round "7"]
[White "Zarovs, Aleksandrs"]
[Black "Davidsson, Oskar Vikingur"]
[Result "0-1"]
[ECO "B47"]
[WhiteElo "1831"]
[BlackElo "1854"]
[PlyCount "138"]
[EventDate "2018.??.??"]
[EventType "swiss"]
[EventCountry "ISL"]
[SourceTitle "Kopavogur"]
[TimeControl "5400+30"]
[WhiteClock "0:28:54"]
[BlackClock "0:03:22"]

1. e4 {[%emt 0:00:00]} c5 {[%emt 0:00:00]} 2. Nf3 {[%emt 0:00:00]} e6 {[%emt 0:00:00]} 3. d4 {[%emt 0:00:00]} cxd4 {[%emt 0:00:00]} 4. Nxd4 {[%emt 0:00:00]} Nc6 {[%emt 0:00:00]} 5. Nc3 {[%emt 0:00:07]} Qc7 {[%emt 0:00:00]} 6. Be2 {[%emt 0:00:42]} a6 {[%emt 0:00:08]} 7. O-O {[%emt 0:00:22]} Nf6 {[%emt 0:00:58]} 8. Be3 {[%emt 0:01:17]} Be7 {[%emt 0:01:10]} 9. f4 {[%emt 0:03:03]} d6 {[%emt 0:00:52]} 10. a3 {[%emt 0:00:43]} b5 {[%emt 0:01:51]} 11. Kh1 {[%emt 0:01:09]} Bb7 {[%emt 0:01:44]} 12. Qe1 {[%emt 0:04:10]} Nxd4 {[%emt 0:06:26]} 13. Bxd4 {[%emt 0:00:16]} e5 {[%emt 0:08:30]} 14. Bg1 {[%emt 0:13:44]} Nxe4 {[%emt 0:03:18]} 15. Nxe4 {[%emt 0:02:06]} Bxe4 {[%emt 0:00:11]} 16. Bxb5+ {[%emt 0:01:01]} axb5 {[%emt 0:00:21]} 17. Qxe4 {[%emt 0:00:28]} Rc8 {[%emt 0:01:45]} 18. c3 {[%emt 0:12:31]} O-O {[%emt 0:00:42]} 19. Rad1 {[%emt 0:01:37]} Bf6 {[%emt 0:03:06]} 20. Rd5 {[%emt 0:02:13]} Rb8 {[%emt 0:02:58]} 21. Qd3 {[%emt 0:01:12]} Qc4 {[%emt 0:02:11]} 22. Rxd6 {[%emt 0:03:54]} exf4 {[%emt 0:00:14]} 23. Rd1 {[%emt 0:02:37]} h6 {[%emt 0:02:51]} 24. Qd5 {[%emt 0:11:16]} Qe2 {[%emt 0:06:54]} 25. Qd2 {[%emt 0:15:30]} Qc4 {[%emt 0:01:40]} 26. Rd3 {[%emt 0:02:20]} Qb3 {[%emt 0:03:22]} 27. Bd4 {[%emt 0:01:40]} Bg5 {[%emt 0:00:50]} 28. Qf2 {[%emt 0:01:11]} Rbd8 {[%emt 0:01:51]} 29. h4 {[%emt 0:03:46]} Bf6 {[%emt 0:01:29]} 30. Bxf6 {[%emt 0:03:35]} Qxd1+ {[%emt 0:00:16]} 31. Rxd1 {[%emt 0:00:13]} Rxd1+ {[%emt 0:00:04]} 32. Kh2 {[%emt 0:00:17]} gxf6 {[%emt 0:00:07]} 33. Qxf4 {[%emt 0:01:27]} Rfd8 {[%emt 0:01:01]} 34. Qb4 {[%emt 0:01:43]} R8d5 {[%emt 0:02:10]} 35. a4 {[%emt 0:01:50]} bxa4 {[%emt 0:00:25]} 36. Qxa4 {[%emt 0:00:24]} R5d2 {[%emt 0:02:02]} 37. b4 {[%emt 0:01:01]} Rc1 {[%emt 0:01:08]} 38. Qa8+ {[%emt 0:02:57]} Kg7 {[%emt 0:00:35]} 39. Qc8 {[%emt 0:04:04]} Rdc2 {[%emt 0:01:51]} 40. Qg4+ {[%emt 0:00:22]} Kf8 {[%emt 0:00:15]} 41. b5 {[%emt 0:02:30]} Rxc3 {[%emt 0:01:24]} 42. Qb4+ {[%emt 0:00:08]} Kg7 {[%emt 0:01:12]} 43. b6 {[%emt 0:00:48]} Rc4 {[%emt 0:02:45]} 44. Qb2 {[%emt 0:00:20]} R1c2 {[%emt 0:00:12]} 45. Qb3 {[%emt 0:00:33]} R4c3 {[%emt 0:02:00]} 46. Qb5 {[%emt 0:00:12]} Rc5 {[%emt 0:00:19]} 47. Qb4 {[%emt 0:01:28]} R5c4 {[%emt 0:00:50]} 48. Qb1 {[%emt 0:00:37]} Rc1 {[%emt 0:00:10]} 49. Qb5 {[%emt 0:00:31]} Rc5 {[%emt 0:00:58]} 50. Qd3 {[%emt 0:00:32]} R1c3 {[%emt 0:00:49]} 51. Qd4 {[%emt 0:00:31]} R5c4 {[%emt 0:00:35]} 52. Qd6 {[%emt 0:00:27]} Rb3 {[%emt 0:01:11]} 53. Qd8 {[%emt 0:00:32]} Rcb4 {[%emt 0:00:16]} 54. g3 {[%emt 0:00:29]} Rxb6 {[%emt 0:00:07]} 55. Qd7 {[%emt 0:00:17]} R6b4 {[%emt 0:00:15]} 56. Qd6 {[%emt 0:00:31]} Rc4 {[%emt 0:01:34]} 57. Qd1 {[%emt 0:00:15]} Re3 {[%emt 0:05:19]} 58. Qh5 {[%emt 0:00:58]} Rc2+ {[%emt 0:00:22]} 59. Kh3 {[%emt 0:00:25]} Rcc3 {[%emt 0:00:09]} 60. Qg4+ {[%emt 0:00:19]} Kh8 {[%emt 0:00:28]} 61. Qf5 {[%emt 0:00:45]} Rxg3+ {[%emt 0:00:14]} 62. Kh2 {[%emt 0:00:05]} Rh3+ {[%emt 0:00:13]} 63. Kg2 {[%emt 0:00:09]} Rcg3+ {[%emt 0:00:05]} 64. Kf2 {[%emt 0:00:08]} Rf3+ {[%emt 0:00:06]} 65. Qxf3 {[%emt 0:00:04]} Rxf3+ {[%emt 0:00:04]} 66. Kxf3 {[%emt 0:00:04]} Kg7 {[%emt 0:07:49]} 67. Kf4 {[%emt 0:00:29]} Kg6 {[%emt 0:00:41]} 68. Kg4 {[%emt 0:00:05]} f5+ {[%emt 0:00:10]} 69. Kf4 {[%emt 0:00:08]} Kf6 {[%emt 0:00:03]} 0-1

[Event "Steinthor Baldursson memorial 2018"]
[Site "?"]
[Date "2018.01.07"]
[Round "7"]
[White "Johannsson, Birkir Isak"]
[Black "Birkisson, Bjorn Holm"]
[Result "1/2-1/2"]
[ECO "A40"]
[WhiteElo "1760"]
[BlackElo "2084"]
[PlyCount "122"]
[EventDate "2018.??.??"]
[EventType "swiss"]
[EventCountry "ISL"]
[SourceTitle "Kopavogur"]
[TimeControl "5400+30"]
[WhiteClock "0:04:37"]
[BlackClock "0:06:27"]

1. d4 {[%emt 0:00:00]} g6 {[%emt 0:06:00]} 2. c4 {[%emt 0:00:00]} Bg7 {[%emt 0:00:05]} 3. e4 {[%emt 0:00:05]} e5 {[%emt 0:00:05]} 4. d5 {[%emt 0:00:05]} d6 {[%emt 0:00:05]} 5. Nc3 {[%emt 0:00:18]} Ne7 {[%emt 0:00:36]} 6. Bd3 {[%emt 0:00:43]} O-O {[%emt 0:01:00]} 7. Nge2 {[%emt 0:00:16]} f5 {[%emt 0:00:07]} 8. exf5 {[%emt 0:02:07]} gxf5 {[%emt 0:00:07]} 9. f4 {[%emt 0:00:11]} e4 {[%emt 0:00:33]} 10. Bc2 {[%emt 0:00:06]} c5 {[%emt 0:09:24]} 11. dxc6 {[%emt 0:04:27]} bxc6 {[%emt 0:01:14]} 12. Be3 {[%emt 0:03:28]} Be6 {[%emt 0:17:41]} 13. Bb3 {[%emt 0:09:28]} c5 {[%emt 0:05:51]} 14. O-O {[%emt 0:05:43]} a6 {[%emt 0:01:42]} 15. Qd2 {[%emt 0:09:21]} Qc7 {[%emt 0:05:44]} 16. Rfd1 {[%emt 0:02:24]} Rd8 {[%emt 0:01:41]} 17. a3 {[%emt 0:01:28]} Nbc6 {[%emt 0:02:02]} 18. Ba2 {[%emt 0:00:38]} Rab8 {[%emt 0:02:56]} 19. Rab1 {[%emt 0:01:14]} Kh8 {[%emt 0:03:24]} 20. h3 {[%emt 0:13:29]} Na5 {[%emt 0:01:26]} 21. Nd5 {[%emt 0:02:53]} Bxd5 {[%emt 0:00:24]} 22. cxd5 {[%emt 0:00:13]} Nb3 {[%emt 0:01:14]} 23. Bxb3 {[%emt 0:01:08]} Rxb3 {[%emt 0:00:39]} 24. Nc1 {[%emt 0:00:07]} Rdb8 {[%emt 0:03:26]} 25. Nxb3 {[%emt 0:03:34]} Rxb3 {[%emt 0:00:05]} 26. Qf2 {[%emt 0:00:16]} Qb7 {[%emt 0:02:10]} 27. Qd2 {[%emt 0:09:04]} Qb6 {[%emt 0:06:31]} 28. Bf2 {[%emt 0:02:09]} Rd3 {[%emt 0:05:48]} 29. Qc2 {[%emt 0:01:02]} Rb3 {[%emt 0:04:14]} 30. Qd2 {[%emt 0:02:59]} h6 {[%emt 0:03:42]} 31. Kh1 {[%emt 0:01:49]} Rxb2 {[%emt 0:00:59]} 32. Rxb2 {[%emt 0:00:23]} Qxb2 {[%emt 0:00:04]} 33. Qxb2 {[%emt 0:03:14]} Bxb2 {[%emt 0:00:04]} 34. a4 {[%emt 0:05:03]} c4 {[%emt 0:01:59]} 35. Bd4+ {[%emt 0:10:27]} Bxd4 {[%emt 0:00:07]} 36. Rxd4 {[%emt 0:00:07]} c3 {[%emt 0:00:13]} 37. Rc4 {[%emt 0:00:04]} Nxd5 {[%emt 0:00:33]} 38. a5 {[%emt 0:00:50]} Nxf4 {[%emt 0:08:48]} 39. Rxc3 {[%emt 0:00:28]} d5 {[%emt 0:00:04]} 40. Rc8+ {[%emt 0:05:04]} Kg7 {[%emt 0:00:08]} 41. Rd8 {[%emt 0:00:16]} e3 {[%emt 0:02:50]} 42. Kg1 {[%emt 0:00:21]} d4 {[%emt 0:00:09]} 43. Kf1 {[%emt 0:02:22]} d3 {[%emt 0:00:27]} 44. g3 {[%emt 0:00:13]} e2+ {[%emt 0:00:24]} 45. Kf2 {[%emt 0:00:12]} Ng2 {[%emt 0:00:15]} 46. Re8 {[%emt 0:00:26]} e1=Q+ {[%emt 0:00:09]} 47. Rxe1 {[%emt 0:00:16]} Nxe1 {[%emt 0:00:04]} 48. Kxe1 {[%emt 0:00:21]} f4 {[%emt 0:03:16]} 49. gxf4 {[%emt 0:00:20]} Kf6 {[%emt 0:00:07]} 50. Kd2 {[%emt 0:00:16]} Kf5 {[%emt 0:00:04]} 51. Kxd3 {[%emt 0:00:10]} Kxf4 {[%emt 0:00:06]} 52. Kc4 {[%emt 0:00:30]} Kg3 {[%emt 0:03:36]} 53. Kc5 {[%emt 0:00:25]} Kxh3 {[%emt 0:00:04]} 54. Kb6 {[%emt 0:00:11]} Kg2 {[%emt 0:00:22]} 55. Kxa6 {[%emt 0:00:17]} h5 {[%emt 0:00:03]} 56. Kb7 {[%emt 0:00:20]} h4 {[%emt 0:00:07]} 57. a6 {[%emt 0:00:12]} h3 {[%emt 0:00:05]} 58. a7 {[%emt 0:00:07]} h2 {[%emt 0:00:05]} 59. a8=Q {[%emt 0:00:07]} h1=Q {[%emt 0:00:06]} 60. Kb8+ {[%emt 0:00:06]} Kg1 {[%emt 0:00:09]} 61. Qxh1+ {[%emt 0:00:10]} Kxh1 1/2-1/2

[Event "Steinthor Baldursson memorial 2018"]
[Site "?"]
[Date "2018.01.07"]
[Round "7"]
[White "Apol, Luitjen Akselsson"]
[Black "Briem, Stephan"]
[Result "0-1"]
[ECO "B94"]
[WhiteElo "1600"]
[BlackElo "1890"]
[PlyCount "110"]
[EventDate "2018.??.??"]
[EventType "swiss"]
[EventCountry "ISL"]
[SourceTitle "Kopavogur"]
[TimeControl "5400+30"]
[WhiteClock "0:02:04"]
[BlackClock "0:02:02"]

1. e4 {[%emt 0:00:00]} c5 {[%emt 0:04:53]} 2. Nf3 {[%emt 0:00:07]} d6 {[%emt 0:00:22]} 3. d4 {[%emt 0:00:24]} cxd4 {[%emt 0:00:18]} 4. Nxd4 {[%emt 0:00:22]} Nf6 {[%emt 0:00:31]} 5. Nc3 {[%emt 0:00:20]} a6 {[%emt 0:00:49]} 6. Bg5 {[%emt 0:00:57]} Nbd7 {[%emt 0:00:40]} 7. f4 {[%emt 0:01:04]} Qc7 {[%emt 0:00:50]} 8. Qf3 {[%emt 0:02:02]} h6 {[%emt 0:01:22]} 9. Bh4 {[%emt 0:04:43]} g5 {[%emt 0:02:34]} 10. fxg5 {[%emt 0:01:54]} hxg5 {[%emt 0:00:46]} 11. Bxg5 {[%emt 0:02:18]} Qc5 {[%emt 0:00:59]} 12. Be3 {[%emt 0:03:37]} Ne5 {[%emt 0:04:37]} 13. Qe2 {[%emt 0:04:00]} Neg4 {[%emt 0:04:29]} 14. Nf5 {[%emt 0:02:49]} Nxe3 15. Qxe3 {[%emt 0:06:12]} Qb4 {[%emt 0:14:19]} 16. Rb1 {[%emt 0:13:34]} Bxf5 {[%emt 0:25:33]} 17. exf5 {[%emt 0:00:44]} Bh6 {[%emt 0:10:37]} 18. Qd3 {[%emt 0:05:58]} Rc8 {[%emt 0:11:56]} 19. a3 {[%emt 0:05:00]} Qb6 {[%emt 0:03:42]} 20. Be2 {[%emt 0:06:14]} Bf4 {[%emt 0:00:53]} 21. g3 {[%emt 0:06:06]} Be5 {[%emt 0:01:12]} 22. Nd1 {[%emt 0:02:27]} Qc6 {[%emt 0:05:21]} 23. Bf3 {[%emt 0:07:35]} d5 {[%emt 0:03:27]} 24. c3 {[%emt 0:01:35]} Ne4 {[%emt 0:01:10]} 25. Ne3 {[%emt 0:02:00]} Rd8 {[%emt 0:00:31]} 26. Rd1 {[%emt 0:01:24]} Qb6 {[%emt 0:00:30]} 27. Bxe4 {[%emt 0:02:48]} dxe4 {[%emt 0:00:33]} 28. Qxd8+ {[%emt 0:00:19]} Qxd8 {[%emt 0:00:02]} 29. Rxd8+ {[%emt 0:00:09]} Kxd8 {[%emt 0:00:02]} 30. Kf2 {[%emt 0:00:18]} e6 {[%emt 0:01:05]} 31. fxe6 {[%emt 0:00:16]} fxe6 {[%emt 0:00:08]} 32. Nc4 {[%emt 0:01:01]} Bc7 {[%emt 0:00:38]} 33. Nd2 {[%emt 0:01:08]} e3+ {[%emt 0:01:02]} 34. Kxe3 {[%emt 0:00:29]} Bxg3 {[%emt 0:00:25]} 35. Nf1 {[%emt 0:00:50]} Bh4 {[%emt 0:00:33]} 36. Ke4 {[%emt 0:03:04]} Rf8 {[%emt 0:00:30]} 37. Ne3 {[%emt 0:01:50]} Rf2 {[%emt 0:00:29]} 38. b3 {[%emt 0:03:33]} Rb2 {[%emt 0:00:33]} 39. b4 {[%emt 0:00:20]} Rb3 {[%emt 0:00:32]} 40. c4 {[%emt 0:02:30]} Rxa3 {[%emt 0:00:21]} 41. Rd1+ {[%emt 0:01:28]} Ke7 {[%emt 0:00:20]} 42. Rd3 {[%emt 0:01:20]} Ra2 {[%emt 0:00:25]} 43. Rb3 {[%emt 0:02:28]} Rxh2 {[%emt 0:00:37]} 44. b5 {[%emt 0:00:58]} a5 {[%emt 0:00:43]} 45. Ra3 {[%emt 0:00:48]} Be1 {[%emt 0:00:31]} 46. Ng4 {[%emt 0:01:53]} Rc2 {[%emt 0:00:32]} 47. Ne3 {[%emt 0:00:08]} Rc1 {[%emt 0:00:31]} 48. Ra2 {[%emt 0:00:39]} Bb4 {[%emt 0:00:19]} 49. Ra4 {[%emt 0:00:44]} Re1 {[%emt 0:00:23]} 50. Ra2 {[%emt 0:00:18]} Bc5 {[%emt 0:00:14]} 51. Rxa5 {[%emt 0:00:49]} Rxe3+ {[%emt 0:00:18]} 52. Kf4 {[%emt 0:00:07]} Rd3 {[%emt 0:00:35]} 53. Ra4 {[%emt 0:01:02]} Rd4+ {[%emt 0:00:12]} 54. Kf3 {[%emt 0:00:24]} Kd6 {[%emt 0:00:15]} 55. Ke2 {[%emt 0:00:21]} Bb6 {[%emt 0:00:17]} 0-1

[Event "Steinthor Baldursson memorial 2018"]
[Site "?"]
[Date "2018.01.07"]
[Round "7"]
[White "Briem, Benedikt"]
[Black "Heidarsson, Arnar"]
[Result "1-0"]
[ECO "A46"]
[WhiteElo "1464"]
[BlackElo "1592"]
[PlyCount "83"]
[EventDate "2018.??.??"]
[EventType "swiss"]
[EventCountry "ISL"]
[SourceTitle "Kopavogur"]
[TimeControl "5400+30"]
[WhiteClock "0:54:13"]
[BlackClock "0:29:13"]

1. d4 {[%emt 0:04:08]} Nf6 {[%emt 0:00:00]} 2. Nf3 {[%emt 0:00:35]} e6 {[%emt 0:00:20]} 3. Bf4 {[%emt 0:00:18]} d5 {[%emt 0:01:30]} 4. e3 {[%emt 0:00:09]} Bd6 {[%emt 0:01:20]} 5. Bg3 {[%emt 0:00:16]} O-O {[%emt 0:00:20]} 6. Bd3 {[%emt 0:00:24]} b6 {[%emt 0:01:10]} 7. Nbd2 {[%emt 0:00:32]} Bb7 {[%emt 0:00:42]} 8. c3 {[%emt 0:00:37]} Ne4 {[%emt 0:06:55]} 9. Qc2 {[%emt 0:02:35]} f5 {[%emt 0:00:36]} 10. Ne5 {[%emt 0:01:50]} Nd7 {[%emt 0:01:06]} 11. Nxd7 Qxd7 {[%emt 0:00:13]} 12. f4 {[%emt 0:05:02]} c5 {[%emt 0:01:54]} 13. Nf3 {[%emt 0:01:09]} c4 {[%emt 0:03:37]} 14. Bxe4 {[%emt 0:01:09]} fxe4 {[%emt 0:00:51]} 15. Ne5 {[%emt 0:00:14]} Bxe5 {[%emt 0:01:16]} 16. fxe5 {[%emt 0:00:38]} b5 {[%emt 0:00:33]} 17. Bf4 {[%emt 0:03:02]} a5 {[%emt 0:01:29]} 18. O-O {[%emt 0:00:38]} Qe7 {[%emt 0:02:00]} 19. Qe2 {[%emt 0:02:29]} b4 {[%emt 0:02:32]} 20. Qc2 {[%emt 0:01:34]} Bc6 {[%emt 0:01:39]} 21. a3 {[%emt 0:03:07]} bxa3 {[%emt 0:00:33]} 22. Rxa3 {[%emt 0:01:35]} a4 {[%emt 0:00:30]} 23. Qe2 {[%emt 0:02:05]} Rfb8 {[%emt 0:00:10]} 24. Rfa1 {[%emt 0:04:15]} Rb6 {[%emt 0:00:25]} 25. Kf1 {[%emt 0:03:17]} Rab8 {[%emt 0:00:23]} 26. R3a2 {[%emt 0:03:06]} Qb7 {[%emt 0:00:14]} 27. Rb1 {[%emt 0:00:39]} Rb3 {[%emt 0:01:03]} 28. Qg4 {[%emt 0:04:54]} Bd7 {[%emt 0:02:28]} 29. Bh6 {[%emt 0:00:22]} Be8 {[%emt 0:04:37]} 30. Qxe6+ {[%emt 0:10:30]} Qf7+ {[%emt 0:00:13]} 31. Qxf7+ {[%emt 0:00:02]} Kxf7 {[%emt 0:00:13]} 32. Bf4 {[%emt 0:00:40]} Ke6 {[%emt 0:00:08]} 33. Ke2 {[%emt 0:04:35]} a3 {[%emt 0:01:16]} 34. Kd2 {[%emt 0:00:30]} Ba4 {[%emt 0:01:29]} 35. Kc1 {[%emt 0:01:46]} axb2+ {[%emt 0:00:54]} 36. Rbxb2 {[%emt 0:02:26]} Rxc3+ {[%emt 0:00:24]} 37. Kb1 {[%emt 0:00:20]} Bb3 {[%emt 0:01:50]} 38. Ra6+ {[%emt 0:01:13]} Ke7 {[%emt 0:01:30]} 39. e6 {[%emt 0:00:53]} Rd3 {[%emt 0:02:45]} 40. Rd2 {[%emt 0:04:24]} Ba4+ {[%emt 0:01:54]} 41. Bxb8 {[%emt 0:01:39]} Rxd2 {[%emt 0:03:15]} 42. Bd6+ {[%emt 0:02:10]} 1-0